Workbook

Sheet DS NĐT HĐHT còn dư nợ
A1: DANH SÁCH KHÁCH HÀNG CÒN DƯ NỢ TẠI CÔNG TY CP TẬP ĐOÀN ĐẦU TƯ ECAPITAL
A3: STT | B3: Họ và Tên | C3: Số tiền đầu tư | D3: Số tiền nhận lại | E3: Số tiền gạt nợ | F3: Còn Lại
A4: 1 | B4: AKIHITO OKANO | C4: 700000000 | D4: -280000000 | E4: 0 | F4: 420000000
A5: 2 | B5: AN DŨNG | C5: 1100000000 | D5: 0 | E5: 0 | F5: 1100000000
A6: 3 | B6: BẠCH THỊ ÁNH TUYẾT | C6: 750000000 | D6: -157652055 | E6: 0 | F6: 592347945
A7: 4 | B7: BẠCH THỊ THANH VÂN | C7: 200000000 | D7: 0 | E7: 0 | F7: 200000000
A8: 5 | B8: BẾ THỊ MINH THUYẾT | C8: 294200000 | D8: 0 | E8: 0 | F8: 294200000
A9: 6 | B9: BÙI ANH DŨNG | C9: 1730000000 | D9: 0 | E9: 0 | F9: 1730000000
A10: 7 | B10: BÙI ÁNH TIỆP | C10: 100000000 | D10: 0 | E10: 0 | F10: 100000000
A11: 8 | B11: BÙI DIỆU HƯƠNG | C11: 985000000 | D11: 0 | E11: 0 | F11: 985000000
A12: 9 | B12: BÙI ĐINH BẢO CHÂU | C12: 600000000 | D12: 0 | E12: 0 | F12: 600000000
A13: 10 | B13: BÙI ĐỨC LƯỢNG | C13: 500000000 | D13: 0 | E13: 0 | F13: 500000000
A14: 11 | B14: BÙI HUY QUANG | C14: 100000000 | D14: 0 | E14: 0 | F14: 100000000
A15: 12 | B15: BÙI KIM DUNG | C15: 981500000 | D15: 0 | E15: 0 | F15: 981500000
A16: 13 | B16: BÙI NGỌC HÀ THY | C16: 2350000000 | D16: 0 | E16: 0 | F16: 2350000000
A17: 14 | B17: BÙI NGỌC LINH | C17: 500000000 | D17: 0 | E17: 0 | F17: 500000000
A18: 15 | B18: BÙI QUỐC ANH | C18: 2000000000 | D18: 0 | E18: 0 | F18: 2000000000
A19: 16 | B19: BÙI QUỐC ĐẠT | C19: 1000000000 | D19: 0 | E19: 0 | F19: 1000000000
A20: 17 | B20: BÙI QUỐC TUẤN | C20: 500000000 | D20: 0 | E20: 0 | F20: 500000000
A21: 18 | B21: BÙI THỊ BẠCH LIÊN | C21: 300000000 | D21: 0 | E21: 0 | F21: 300000000
A22: 19 | B22: BÙI THỊ BẢY | C22: 100000000 | D22: 0 | E22: 0 | F22: 100000000
A23: 20 | B23: BÙI THỊ HẢO | C23: 300000000 | D23: 0 | E23: 0 | F23: 300000000
A24: 21 | B24: BÙI THỊ HIỀN | C24: 5393000000 | D24: -5387950000 | E24: 0 | F24: 5050000
A25: 22 | B25: BÙI THỊ HOA | C25: 700000000 | D25: -200000000 | E25: 0 | F25: 500000000
A26: 23 | B26: BÙI THỊ HỒNG THẮM | C26: 1178750000 | D26: 0 | E26: 0 | F26: 1178750000
A27: 24 | B27: BÙI THỊ HỒNG VÂN | C27: 250000000 | D27: 0 | E27: 0 | F27: 250000000
A28: 25 | B28: BÙI THỊ HUỆ | C28: 6002000000 | D28: -6000000000 | E28: 0 | F28: 2000000
A29: 26 | B29: BÙI THỊ KIM OANH | C29: 1000000000 | D29: -700000000 | E29: 0 | F29: 300000000
A30: 27 | B30: BÙI THỊ LIÊN | C30: 788980000 | D30: 0 | E30: 0 | F30: 788980000
A31: 28 | B31: BÙI THỊ LUYẾN | C31: 200000000 | D31: 0 | E31: 0 | F31: 200000000
A32: 29 | B32: BÙI THỊ MỴ | C32: 100000000 | D32: 0 | E32: 0 | F32: 100000000
A33: 30 | B33: BÙI THỊ PHƠNG LAM | C33: 50000000 | D33: 0 | E33: 0 | F33: 50000000
A34: 31 | B34: BÙI THỊ SÁU | C34: 1989000000 | D34: -290000000 | E34: 0 | F34: 1699000000
A35: 32 | B35: BÙI THỊ THANH HÀ | C35: 700000000 | D35: -100000000 | E35: 0 | F35: 600000000
A36: 33 | B36: BÙI THỊ THANH HƯƠNG | C36: 50000000 | D36: 0 | E36: 0 | F36: 50000000
A37: 34 | B37: BÙI THỊ THANH NHÀN | C37: 3100000000 | D37: -1700000000 | E37: 0 | F37: 1400000000
A38: 35 | B38: BÙI THỊ THU HÀ | C38: 1800000000 | D38: 0 | E38: 0 | F38: 1800000000
A39: 36 | B39: BÙI THỊ TUYẾT | C39: 4035870000 | D39: 0 | E39: 0 | F39: 4035870000
A40: 37 | B40: BÙI THỊ XUÂN DUNG | C40: 199400000 | D40: 0 | E40: -91016600 | F40: 108383400
A41: 38 | B41: BÙI THÙY LINH | C41: 235000000 | D41: -180000000 | E41: 0 | F41: 55000000
A42: 39 | B42: BÙI TRUNG KIÊN | C42: 600000000 | D42: 0 | E42: 0 | F42: 600000000
A43: 40 | B43: BÙI VIỆT HÒA | C43: 2200009900 | D43: -1701249315 | E43: 0 | F43: 498760585
A44: 41 | B44: BÙI XUÂN PHƯƠNG | C44: 420000000 | D44: -200000000 | E44: 0 | F44: 220000000
A45: 42 | B45: BÙI XUÂN TRANG | C45: 400000000 | D45: -100000000 | E45: 0 | F45: 300000000
A46: 43 | B46: CAO ĐỨC HÙNG | C46: 749850000 | D46: -100000000 | E46: 0 | F46: 649850000
A47: 44 | B47: CAO HƯƠNG LY | C47: 100000000 | D47: -40000000 | E47: 0 | F47: 60000000
A48: 45 | B48: CAO THỊ NGỌC DUNG | C48: 100000000 | D48: 0 | E48: 0 | F48: 100000000
A49: 46 | B49: CAO VĂN QUẾ | C49: 150000000 | D49: 0 | E49: 0 | F49: 150000000
A50: 47 | B50: CAO XUÂN HƯƠNG | C50: 410000000 | D50: 0 | E50: 0 | F50: 410000000
A51: 48 | B51: CHÂU CÔNG TIẾN | C51: 900000000 | D51: -400000000 | E51: 0 | F51: 500000000
A52: 49 | B52: CHU ĐỨC DŨNG | C52: 600000000 | D52: 0 | E52: 0 | F52: 600000000
A53: 50 | B53: CHU THỊ ANH THƯ | C53: 200000000 | D53: -7783968 | E53: 0 | F53: 192216032
A54: 51 | B54: CHU THỊ MỸ | C54: 150000000 | D54: 0 | E54: 0 | F54: 150000000
A55: 52 | B55: CHU THỊ NHÂN | C55: 1075850626 | D55: 0 | E55: 0 | F55: 1075850626
A56: 53 | B56: CHU THỊ THỦY | C56: 136230000 | D56: 0 | E56: 0 | F56: 136230000
A57: 54 | B57: CHU THỊ TUYẾT MAI | C57: 190000000 | D57: 0 | E57: 0 | F57: 190000000
A58: 55 | B58: CÔ MỘNG KIM THÀNH | C58: 9000000 | D58: 0 | E58: 0 | F58: 9000000
A59: 56 | B59: CÙ ĐÌNH THÁI | C59: 200000000 | D59: 0 | E59: 0 | F59: 200000000
A60: 57 | B60: CÙ THỊ THANH TÚ | C60: 1400000000 | D60: -2623562 | E60: 0 | F60: 1397376438
A61: 58 | B61: CUNG THỊ HOÀI THU | C61: 200000000 | D61: 0 | E61: 0 | F61: 200000000
A62: 59 | B62: ĐẶNG BÍCH THỦY | C62: 1132929836 | D62: -1100000000 | E62: 0 | F62: 32929836
A63: 60 | B63: ĐẶNG ĐỨC QUANG | C63: 300000000 | D63: 0 | E63: 0 | F63: 300000000
A64: 61 | B64: ĐẶNG HẢI YẾN | C64: 800000000 | D64: -500000000 | E64: 0 | F64: 300000000
A65: 62 | B65: ĐẶNG NGỌC ANH | C65: 100000000 | D65: 0 | E65: 0 | F65: 100000000
A66: 63 | B66: ĐẶNG NGỌC BÍCH | C66: 200000000 | D66: -195340959 | E66: 0 | F66: 4659041
A67: 64 | B67: ĐẶNG NGỌC DIỆP | C67: 550000000 | D67: -2576712 | E67: 0 | F67: 547423288
A68: 65 | B68: ĐẶNG QUANG THẮNG | C68: 1500000000 | D68: 0 | E68: 0 | F68: 1500000000
A69: 66 | B69: ĐẶNG THANH HƯNG | C69: 977667000 | D69: 0 | E69: 0 | F69: 977667000
A70: 67 | B70: ĐẶNG THANH VÂN | C70: 150000000 | D70: 0 | E70: 0 | F70: 150000000
A71: 68 | B71: ĐẶNG THẾ SỦNG | C71: 90000000 | D71: 0 | E71: 0 | F71: 90000000
A72: 69 | B72: ĐẶNG THỊ ÁNH QUYÊN | C72: 700000000 | D72: 0 | E72: 0 | F72: 700000000
A73: 70 | B73: ĐẶNG THỊ HỌC | C73: 1500000000 | D73: 0 | E73: 0 | F73: 1500000000
A74: 71 | B74: ĐẶNG THỊ HỒNG TUYẾT | C74: 4200000000 | D74: 0 | E74: 0 | F74: 4200000000
A75: 72 | B75: ĐẶNG THỊ KIM PHƯỢNG | C75: 650000000 | D75: 0 | E75: 0 | F75: 650000000
A76: 73 | B76: ĐẶNG THỊ LAN ANH | C76: 940000000 | D76: -336742646 | E76: 0 | F76: 603257354
A77: 74 | B77: ĐẶNG THỊ LAN PHƯƠNG | C77: 2400000000 | D77: 0 | E77: 0 | F77: 2400000000
A78: 75 | B78: ĐẶNG THỊ LỆ HẰNG | C78: 108000000 | D78: 0 | E78: 0 | F78: 108000000
A79: 76 | B79: ĐẶNG THỊ PHƯƠNG | C79: 507500000 | D79: 0 | E79: 0 | F79: 507500000
A80: 77 | B80: ĐẶNG THỊ PHƯƠNG LAN | C80: 200000000 | D80: 0 | E80: 0 | F80: 200000000
A81: 78 | B81: ĐẶNG THỊ THU ANH | C81: 60000000 | D81: 0 | E81: 0 | F81: 60000000
A82: 79 | B82: ĐẶNG THỊ THU HUYỀN | C82: 260000000 | D82: -160000000 | E82: 0 | F82: 100000000
A83: 80 | B83: ĐẶNG THỊ THU THỦY | C83: 1400000000 | D83: 0 | E83: 0 | F83: 1400000000
A84: 81 | B84: ĐẶNG TUYẾT NHUNG | C84: 1001000000 | D84: -10004515 | E84: -100000000 | F84: 890995485
A85: 82 | B85: ĐẶNG VĂN DŨNG | C85: 2100000000 | D85: 0 | E85: 0 | F85: 2100000000
A86: 83 | B86: DANG VU TO UYEN | C86: 100000000 | D86: 0 | E86: 0 | F86: 100000000
A87: 84 | B87: ĐÀO ANH TUẤN | C87: 50000000 | D87: 0 | E87: 0 | F87: 50000000
A88: 85 | B88: ĐÀO KIM CHI | C88: 20000000 | D88: 0 | E88: 0 | F88: 20000000
A89: 86 | B89: ĐÀO MINH CHÍNH | C89: 300000000 | D89: 0 | E89: 0 | F89: 300000000
A90: 87 | B90: ĐÀO NGỌC HOA | C90: 500000000 | D90: -2342466 | E90: 0 | F90: 497657534
A91: 88 | B91: ĐÀO QUANG DŨNG | C91: 500000000 | D91: 0 | E91: 0 | F91: 500000000
A92: 89 | B92: ĐÀO THANH TÂM | C92: 300000000 | D92: 0 | E92: 0 | F92: 300000000
A93: 90 | B93: ĐÀO THANH TUẤN | C93: 100000000 | D93: 0 | E93: 0 | F93: 100000000
A94: 91 | B94: ĐÀO THỊ ÁNH VÂN | C94: 14730000999 | D94: -14234627877 | E94: 0 | F94: 495373122
A95: 92 | B95: ĐÀO THỊ HOAN | C95: 488842000 | D95: 0 | E95: 0 | F95: 488842000
A96: 93 | B96: ĐÀO THỊ KIM THOA | C96: 3090000000 | D96: -2593088619 | E96: 0 | F96: 496911381
A97: 94 | B97: ĐÀO THỊ THU | C97: 125000000 | D97: 0 | E97: 0 | F97: 125000000
A98: 95 | B98: ĐÀO THỊ TƯỜNG VÂN | C98: 1650000000 | D98: -1150000000 | E98: 0 | F98: 500000000
A99: 96 | B99: ĐÀO THỊ TUYẾT | C99: 917600000 | D99: -200000000 | E99: 0 | F99: 717600000
A100: 97 | B100: ĐÀO THỊ ÚT SINH | C100: 1850000000 | D100: -1450000000 | E100: 0 | F100: 400000000
A101: 98 | B101: ĐÀO THÙY DUNG | C101: 600000000 | D101: 0 | E101: 0 | F101: 600000000
A102: 99 | B102: ĐÀO THÚY HẠNH | C102: 300000000 | D102: 0 | E102: 0 | F102: 300000000
A103: 100 | B103: ĐÀO TRỌNG THIẾT | C103: 594490000 | D103: 0 | E103: 0 | F103: 594490000
A104: 101 | B104: ĐÀO VĂN CHIẾN | C104: 300000000 | D104: 0 | E104: 0 | F104: 300000000
A105: 102 | B105: ĐÀO VĂN HÙNG | C105: 200000000 | D105: 0 | E105: 0 | F105: 200000000
A106: 103 | B106: ĐÀO VĂN SÁU | C106: 50000000 | D106: 0 | E106: 0 | F106: 50000000
A107: 104 | B107: ĐÀO XUÂN QUÝ | C107: 100000000 | D107: -97500000 | E107: 0 | F107: 2500000
A108: 105 | B108: ĐẬU THANH MINH | C108: 100000000 | D108: 0 | E108: 0 | F108: 100000000
A109: 106 | B109: ĐINH DIỆU HUYỀN | C109: 950000000 | D109: 0 | E109: 0 | F109: 950000000
A110: 107 | B110: ĐINH ĐỨC NINH | C110: 300000000 | D110: 0 | E110: 0 | F110: 300000000
A111: 108 | B111: ĐINH HÙNG SƠN | C111: 700000000 | D111: 0 | E111: -100000000 | F111: 600000000
A112: 109 | B112: ĐINH THANH TRANG | C112: 50000000 | D112: 0 | E112: 0 | F112: 50000000
A113: 110 | B113: ĐINH THỊ DIỄM THU | C113: 1340000000 | D113: -340000000 | E113: 0 | F113: 1000000000
A114: 111 | B114: ĐINH THỊ HẢI | C114: 300000000 | D114: 0 | E114: 0 | F114: 300000000
A115: 112 | B115: ĐINH THỊ HẬU | C115: 700000000 | D115: -200000000 | E115: 0 | F115: 500000000
A116: 113 | B116: ĐINH THỊ HỒNG | C116: 120000000 | D116: 0 | E116: 0 | F116: 120000000
A117: 114 | B117: ĐINH THỊ LIỄU | C117: 450000000 | D117: -200000000 | E117: 0 | F117: 250000000
A118: 115 | B118: DINH THI MINH | C118: 980000000 | D118: 0 | E118: 0 | F118: 980000000
A119: 116 | B119: ĐINH THỊ MỸ LOAN | C119: 600000000 | D119: 0 | E119: 0 | F119: 600000000
A120: 117 | B120: ĐINH THỊ MỸ VÂN | C120: 300000000 | D120: 0 | E120: 0 | F120: 300000000
A121: 118 | B121: ĐINH THỊ NGA | C121: 60000000 | D121: 0 | E121: 0 | F121: 60000000
A122: 119 | B122: ĐINH THỊ TÂM HIỀN | C122: 300000000 | D122: 0 | E122: 0 | F122: 300000000
A123: 120 | B123: ĐINH THỊ THÚY LANH | C123: 99700000 | D123: 0 | E123: 0 | F123: 99700000
A124: 121 | B124: ĐINH TUYẾT VÂN | C124: 294200000 | D124: 0 | E124: 0 | F124: 294200000
A125: 122 | B125: ĐINH XUÂN CẦM | C125: 300000000 | D125: 0 | E125: 0 | F125: 300000000
A126: 123 | B126: ĐINH XUÂN TÙNG | C126: 250000000 | D126: 0 | E126: -107000000 | F126: 143000000
A127: 124 | B127: ĐỖ BẢO NGỌC | C127: 1000000000 | D127: 0 | E127: 0 | F127: 1000000000
A128: 125 | B128: ĐỖ ĐẮC ĐINH | C128: 350000000 | D128: 0 | E128: 0 | F128: 350000000
A129: 126 | B129: ĐỖ ĐÌNH THI | C129: 599999999 | D129: 0 | E129: 0 | F129: 599999999
A130: 127 | B130: ĐỖ HỒNG CHƯƠNG | C130: 4560747000 | D130: 0 | E130: 0 | F130: 4560747000
A131: 128 | B131: ĐỖ HỒNG MINH | C131: 14747190000 | D131: -4500000000 | E131: -2000000000 | F131: 8247190000
A132: 129 | B132: ĐỖ HỒNG TOẢN | C132: 6670400000 | D132: -5300000000 | E132: 0 | F132: 1370400000
A133: 130 | B133: ĐỖ KHÁNH HÒA | C133: 340000000 | D133: -140000000 | E133: 0 | F133: 200000000
A134: 131 | B134: ĐỖ LÊ HOÀNG | C134: 700000000 | D134: -100000000 | E134: -120000000 | F134: 480000000
A135: 132 | B135: ĐỖ MẠNH HÀ | C135: 1057500000 | D135: 0 | E135: 0 | F135: 1057500000
A136: 133 | B136: ĐỖ MINH KHÁNH | C136: 100000000 | D136: 0 | E136: 0 | F136: 100000000
A137: 134 | B137: ĐỖ MINH THÙY | C137: 490775000 | D137: 0 | E137: 0 | F137: 490775000
A138: 135 | B138: ĐỖ NGỌC THẢO | C138: 500000000 | D138: 0 | E138: 0 | F138: 500000000
A139: 136 | B139: ĐỖ NGỌC TÚ | C139: 100000000 | D139: 0 | E139: 0 | F139: 100000000
A140: 137 | B140: ĐỖ PHÚC HIỂN | C140: 500000000 | D140: 0 | E140: 0 | F140: 500000000
A141: 138 | B141: ĐỖ PHƯƠNG LAN | C141: 500000000 | D141: -487091233 | E141: 0 | F141: 12908767
A142: 139 | B142: ĐỖ QUANG TUẤN | C142: 350000000 | D142: 0 | E142: 0 | F142: 350000000
A143: 140 | B143: ĐỖ THỊ CHINH | C143: 400000000 | D143: 0 | E143: -230000000 | F143: 170000000
A144: 141 | B144: ĐỖ THỊ CÚC | C144: 14351726667 | D144: -10930007700 | E144: 0 | F144: 3421718967
A145: 142 | B145: ĐỖ THỊ HÀ | C145: 230000000 | D145: -100000000 | E145: 0 | F145: 130000000
A146: 143 | B146: ĐỖ THỊ HÂN | C146: 300000000 | D146: 0 | E146: -172000000 | F146: 128000000
A147: 144 | B147: ĐỖ THỊ HẠNH | C147: 343700000 | D147: 0 | E147: 0 | F147: 343700000
A148: 145 | B148: ĐỖ THỊ HIỀN | C148: 1550000000 | D148: -350000000 | E148: 0 | F148: 1200000000
A149: 146 | B149: ĐỖ THỊ HÒA | C149: 1850000000 | D149: -700000000 | E149: 0 | F149: 1150000000
A150: 147 | B150: ĐÔ THỊ HOAN | C150: 200000000 | D150: 0 | E150: 0 | F150: 200000000
A151: 148 | B151: ĐỖ THỊ HỒNG HẢI | C151: 500000000 | D151: -29182722 | E151: 0 | F151: 470817278
A152: 149 | B152: ĐỖ THỊ HỒNG HẠNH | C152: 285000000 | D152: 0 | E152: 0 | F152: 285000000
A153: 150 | B153: ĐỖ THỊ HƯỜNG | C153: 200000000 | D153: 0 | E153: 0 | F153: 200000000
A154: 151 | B154: DO THI KHANH HUYEN | C154: 430000000 | D154: 0 | E154: 0 | F154: 430000000
A155: 152 | B155: ĐỖ THỊ KIM CHUNG | C155: 70000000 | D155: 0 | E155: 0 | F155: 70000000
A156: 153 | B156: ĐỖ THỊ KIM THOA | C156: 500000000 | D156: 0 | E156: -130954143 | F156: 369045857
A157: 154 | B157: ĐỖ THỊ MINH | C157: 50000000 | D157: 0 | E157: 0 | F157: 50000000
A158: 155 | B158: ĐỖ THỊ MINH THANH | C158: 1000000000 | D158: -300000000 | E158: 0 | F158: 700000000
A159: 156 | B159: ĐỖ THỊ NGA | C159: 300000000 | D159: 0 | E159: 0 | F159: 300000000
A160: 157 | B160: ĐỖ THỊ NGỌC THOA | C160: 1500000000 | D160: 0 | E160: 0 | F160: 1500000000
A161: 158 | B161: ĐỖ THỊ NGUYỆT | C161: 840000000 | D161: 0 | E161: 0 | F161: 840000000
A162: 159 | B162: ĐỖ THỊ PHƯƠNG LAN | C162: 100000000 | D162: 0 | E162: 0 | F162: 100000000
A163: 160 | B163: ĐỖ THỊ PHƯƠNG MAI | C163: 300000000 | D163: -200000000 | E163: -58317754 | F163: 41682246
A164: 161 | B164: ĐỖ THỊ QUẾ | C164: 300000000 | D164: 0 | E164: 0 | F164: 300000000
A165: 162 | B165: ĐỖ THỊ THANH MAI | C165: 200000000 | D165: 0 | E165: 0 | F165: 200000000
A166: 163 | B166: ĐỖ THỊ THANH NGA | C166: 2200000000 | D166: -2050000000 | E166: 0 | F166: 150000000
A167: 164 | B167: ĐỖ THỊ THU HÀ | C167: 200000000 | D167: -50000000 | E167: 0 | F167: 150000000
A168: 165 | B168: ĐỖ THỊ THU HẰNG | C168: 250000000 | D168: 0 | E168: 0 | F168: 250000000
A169: 166 | B169: ĐỖ THỊ THU THỦY | C169: 255000000 | D169: 0 | E169: 0 | F169: 255000000
A170: 167 | B170: ĐỖ THỊ THU VÂN | C170: 820000000 | D170: 0 | E170: 0 | F170: 820000000
A171: 168 | B171: ĐỖ THỊ THÙY TRÂM | C171: 118000000 | D171: 0 | E171: 0 | F171: 118000000
A172: 169 | B172: ĐỖ THỊ ƯỚC | C172: 300000000 | D172: 0 | E172: 0 | F172: 300000000
A173: 170 | B173: DO THUY DUONG | C173: 140000000 | D173: 0 | E173: 0 | F173: 140000000
A174: 171 | B174: ĐỖ THÚY NGỌC | C174: 200000000 | D174: 0 | E174: 0 | F174: 200000000
A175: 172 | B175: ĐỖ TIẾN SỸ | C175: 520000000 | D175: 0 | E175: 0 | F175: 520000000
A176: 173 | B176: ĐỖ TRẦN ÁNH SÁNG | C176: 4503540000 | D176: -3900000000 | E176: 0 | F176: 603540000
A177: 174 | B177: ĐỖ TRÍ TRUNG | C177: 690550000 | D177: 0 | E177: 0 | F177: 690550000
A178: 175 | B178: DO VAN KHOAT | C178: 200000000 | D178: 0 | E178: 0 | F178: 200000000
A179: 176 | B179: DO VAN NO | C179: 500000000 | D179: 0 | E179: 0 | F179: 500000000
A180: 177 | B180: ĐỖ VĂN SOÁT | C180: 7740000000 | D180: -1740000000 | E180: 0 | F180: 6000000000
A181: 178 | B181: ĐỖ VĂN TOÀN | C181: 900000000 | D181: 0 | E181: -100000000 | F181: 800000000
A182: 179 | B182: ĐỖ VIỆT HỒNG | C182: 1300000000 | D182: 0 | E182: 0 | F182: 1300000000
A183: 180 | B183: ĐỖ XUÂN HÙNG | C183: 5000000000 | D183: -2300000000 | E183: 0 | F183: 2700000000
A184: 181 | B184: ĐỖ XUÂN THÀNH | C184: 200000000 | D184: 0 | E184: 0 | F184: 200000000
A185: 182 | B185: ĐOÀN HUY PHÚ | C185: 1260000000 | D185: -300000000 | E185: 0 | F185: 960000000
A186: 183 | B186: ĐOÀN KIM TUẤN | C186: 600000000 | D186: 0 | E186: 0 | F186: 600000000
A187: 184 | B187: ĐOÀN LÊ KHÁNH HOÀNG | C187: 500000000 | D187: 0 | E187: 0 | F187: 500000000
A188: 185 | B188: ĐOÀN LÊ TƯỜNG DUNG | C188: 300000000 | D188: 0 | E188: 0 | F188: 300000000
A189: 186 | B189: ĐOÀN MAI PHƯƠNG | C189: 693000000 | D189: 0 | E189: -40000000 | F189: 653000000
A190: 187 | B190: ĐOÀN NGỌC LỆ | C190: 300000000 | D190: 0 | E190: 0 | F190: 300000000
A191: 188 | B191: ĐOÀN NGỌC MỘC | C191: 297000000 | D191: 0 | E191: 0 | F191: 297000000
A192: 189 | B192: ĐOÀN NGỌC TRÍ | C192: 5000000000 | D192: 0 | E192: 0 | F192: 5000000000
A193: 190 | B193: DOÃN QUẾ | C193: 100000000 | D193: 0 | E193: 0 | F193: 100000000
A194: 191 | B194: ĐOÀN THANH HẢI | C194: 300000000 | D194: 0 | E194: 0 | F194: 300000000
A195: 192 | B195: ĐOÀN THANH LAN ANH | C195: 300000000 | D195: 0 | E195: 0 | F195: 300000000
A196: 193 | B196: ĐOÀN THỊ ĐÔNG PHƯƠNG | C196: 915000000 | D196: 0 | E196: 0 | F196: 915000000
A197: 194 | B197: ĐOÀN THỊ HẰNG | C197: 300000000 | D197: 0 | E197: 0 | F197: 300000000
A198: 195 | B198: ĐOÀN THỊ HỢI | C198: 1810000000 | D198: 0 | E198: 0 | F198: 1810000000
A199: 196 | B199: ĐOÀN THỊ HUỆ | C199: 100000000 | D199: 0 | E199: 0 | F199: 100000000
A200: 197 | B200: ĐOÀN THỊ KIM HOA | C200: 655000000 | D200: -5000000 | E200: -200000000 | F200: 450000000
A201: 198 | B201: ĐOÀN THỊ QUỲNH MAI | C201: 1000000000 | D201: -600000000 | E201: 0 | F201: 400000000
... 1077 more rows

Sheet Trang_tính1 (hidden)
A1: THUCHI | B1: (Nhiều khoản mục)
A2: Ngày hạch toán | B2: (Tất cả)
A4: Nhãn Hàng | B4: Tổng của THU | C4: Tổng của CHI | D4: Tổng của SOTIEN
A5: 1. Chi hoạt động | B5: 2246007393 | C5: 18843011369 | D5: -16597003976
A6: 2. Trái Phiếu | B6: 611143293326 | C6: 795081621301 | D6: -183938327975
A7: 3. Hợp tác đầu tư | B7: 1734983415210 | C7: 879284360155 | D7: 855699055055
A8: 4. Egroup | B8: 368459790637 | C8: 851606353150 | D8: -483146562513
A9: 5. Cổ phần | B9: 0 | C9: 396000000000 | D9: -396000000000
A10: 6. Góp vốn | B10: 224000000000 | C10: 0 | D10: 224000000000
A11: Tổng Cuối | B11: 2940832506566 | C11: 2940815345975 | D11: 17160591

Sheet DATA (hidden)
A1: Ngày hạch toán | B1: Cột1 | C1: Số chứng từ | D1: Diễn giải | E1: Tài khoản | F1: TK đối ứng | G1: THU | H1: CHI | I1: THUCHI | J1: SOTIEN | K1: Dư Nợ | L1: Phân Loại | M1: DOITUONG
A2: 2021-01-10 | B2: 2021-01-10 | C2: PC00020 | D2: Chi lương nhân viên tháng 12/2020 | E2: 111 | F2: 3341 | G2: 0 | H2: 4837000 | I2: CHI | J2: =G2-H2 -> -4837000 | L2: 1. Chi hoạt động | M2: Lương
A3: 2021-01-10 | B3: 2021-01-10 | C3: PC00020 | D3: Chi lương nhân viên tháng 12/2020 | E3: 111 | F3: 3341 | G3: 0 | H3: 4837000 | I3: CHI | J3: =G3-H3 -> -4837000 | L3: 1. Chi hoạt động | M3: Lương
A4: 2021-01-10 | B4: 2021-01-10 | C4: PC00020 | D4: Chi lương nhân viên tháng 12/2020 | E4: 111 | F4: 3341 | G4: 0 | H4: 4837000 | I4: CHI | J4: -4837000 | L4: 1. Chi hoạt động | M4: Lương
A5: 2021-01-10 | B5: 2021-01-10 | C5: PC00020 | D5: Chi lương nhân viên tháng 12/2020 | E5: 111 | F5: 3341 | G5: 0 | H5: 4837000 | I5: CHI | J5: -4837000 | L5: 1. Chi hoạt động | M5: Lương
A6: 2021-01-10 | B6: 2021-01-10 | C6: PC00020 | D6: Chi lương nhân viên tháng 12/2020 | E6: 111 | F6: 3341 | G6: 0 | H6: 5400000 | I6: CHI | J6: -5400000 | L6: 1. Chi hoạt động | M6: Lương
A7: 2021-01-10 | B7: 2021-01-10 | C7: PC00020 | D7: Chi lương nhân viên tháng 12/2020 | E7: 111 | F7: 3341 | G7: 0 | H7: 5400000 | I7: CHI | J7: -5400000 | L7: 1. Chi hoạt động | M7: Lương
A8: 2021-01-15 | B8: 2021-01-15 | C8: NTTK00253 | D8: nộp tiền tk | E8: 111 | F8: 1121 | G8: 0 | H8: 3000000 | I8: CHI* | J8: -3000000 | L8: 0.Rút nộp | M8: Trần Anh Tuấn
A9: 2021-05-28 | B9: 2021-05-28 | C9: NTTK00106 | D9: nộp tiền tk | E9: 111 | F9: 1121 | G9: 0 | H9: 8400000 | I9: CHI* | J9: -8400000 | L9: 0.Rút nộp | M9: Trần Anh Tuấn
A10: 2021-06-30 | B10: 2021-06-30 | C10: NTTK00108 | D10: Bùi Thanh Thúy Nộp tiền vào TK | E10: 111 | F10: 1121 | G10: 0 | H10: 193113000 | I10: CHI* | J10: -193113000 | L10: 0.Rút nộp | M10: Bùi Thanh Thúy
A11: 2021-06-30 | B11: 2021-06-30 | C11: NTTK00109 | D11: nộp tiền tk | E11: 111 | F11: 1121 | G11: 0 | H11: 100000 | I11: CHI* | J11: -100000 | L11: 0.Rút nộp | M11: Trần Anh Tuấn
A12: 2021-07-27 | B12: 2021-07-27 | C12: NTTK00112 | D12: Nộp tiền vào TK | E12: 111 | F12: 1121 | G12: 0 | H12: 162100000 | I12: CHI* | J12: -162100000 | L12: 0.Rút nộp | M12: Trần Anh Tuấn
A13: 2021-08-15 | B13: 2021-08-15 | C13: NVK00540 | D13: Đặng Văn Hiển trả tiền vay | E13: 111 | F13: 1283 | G13: 14884000000 | H13: 0 | I13: THU | J13: 14884000000 | L13: 4. Egroup | M13: ĐẶNG VĂN HIỂN
A14: 2021-08-15 | B14: 2021-08-15 | C14: PC00021 | D14: Chi tiền mua CP | E14: 111 | F14: 221 | G14: 0 | H14: 15000000000 | I14: CHI | J14: -15000000000 | L14: 5. Cổ phần | M14: NGUYỄN THỊ DUNG
A15: 2021-08-24 | B15: 2021-08-24 | C15: NTTK00114 | D15: Nộp tiền vào TK | E15: 111 | F15: 1121 | G15: 0 | H15: 182542000 | I15: CHI* | J15: -182542000 | L15: 0.Rút nộp | M15: Trần Anh Tuấn
A16: 2021-09-01 | B16: 2021-09-01 | C16: NVK00538 | D16: Trần Anh Tuấn trả tiền vay | E16: 111 | F16: 1283 | G16: 4200000000 | H16: 0 | I16: THU | J16: 4200000000 | L16: 4. Egroup | M16: Trần Anh Tuấn
A17: 2021-09-03 | B17: 2021-09-03 | C17: NVK00183 | D17: Nguyễn Mạnh Phú trả tiền vay | E17: 111 | F17: 1283 | G17: =6809148600+8430942-650000000 -> 6167579542 | H17: 0 | I17: THU* | J17: 6167579542 | L17: 0.Rút nộp | M17: NGUYỄN MẠNH PHÚ
A18: 2021-09-03 | B18: 2021-09-03 | C18: NVK00183 | D18: Nguyễn Mạnh Phú trả tiền vay | E18: 111 | F18: 1283 | G18: 1000000000 | H18: 0 | I18: THU | J18: =G18-H18 -> 1000000000 | L18: 4. Egroup | M18: NGUYỄN MẠNH PHÚ
A19: 2021-09-06 | B19: 2021-09-06 | C19: PC00022 | D19: Chi tiền mua CP | E19: 111 | F19: 221 | G19: 0 | H19: 4500000000 | I19: CHI | J19: -4500000000 | L19: 5. Cổ phần | M19: NGUYỄN THỊ DUNG
A20: 2021-09-15 | B20: 2021-09-15 | C20: NVK00541 | D20: Nguyễn Mạnh Phú trả tiền vay | E20: 111 | F20: 1283 | G20: 30000000000 | H20: 0 | I20: THU | J20: 30000000000 | L20: 4. Egroup | M20: NGUYỄN MẠNH PHÚ
A21: 2021-09-15 | B21: 2021-09-15 | C21: NTTK00116 | D21: Nộp tiền vào TK | E21: 111 | F21: 1121 | G21: 0 | H21: 149060000 | I21: CHI* | J21: -149060000 | L21: 0.Rút nộp | M21: Trần Anh Tuấn
A22: 2021-09-15 | B22: 2021-09-15 | C22: PC00028 | D22: Chi tiền mua CP | E22: 111 | F22: 221 | G22: 0 | H22: 28000000000 | I22: CHI | J22: -28000000000 | L22: 5. Cổ phần | M22: NGUYỄN THỊ DUNG
A23: 2021-09-16 | B23: 2021-09-16 | C23: NTTK00117 | D23: Nộp tiền vào TK | E23: 111 | F23: 1121 | G23: 0 | H23: 212837000 | I23: CHI* | J23: -212837000 | L23: 0.Rút nộp | M23: Trần Anh Tuấn
A24: 2021-09-17 | B24: 2021-09-17 | C24: NTTK00118 | D24: Nộp tiền vào TK | E24: 111 | F24: 1121 | G24: 0 | H24: 2000000 | I24: CHI* | J24: -2000000 | L24: 0.Rút nộp | M24: Trần Anh Tuấn
A25: 2021-09-29 | B25: 2021-09-29 | C25: NTTK00119 | D25: Nộp tiền vào TK | E25: 111 | F25: 1121 | G25: 0 | H25: 6500000 | I25: CHI* | J25: -6500000 | L25: 0.Rút nộp | M25: Trần Anh Tuấn
A26: 2021-09-30 | B26: 2021-09-30 | C26: PT00060 | D26: NGUYỄN NGỌC THỦY Nộp tiền | E26: 111 | F26: 1388 | G26: 52800000000 | H26: 0 | I26: THU | J26: 52800000000 | L26: 4. Egroup | M26: NGUYỄN NGỌC THỦY
A27: 2021-09-30 | B27: 2021-09-30 | C27: PT00061 | D27: NGUYỄN VĂN SƠN Nộp tiền | E27: 111 | F27: 1388 | G27: 7000000000 | H27: 0 | I27: THU | J27: 7000000000 | L27: 4. Egroup | M27: NGUYỄN VĂN SƠN
A28: 2021-09-30 | B28: 2021-09-30 | C28: PT00062 | D28: NGUYỄN THỊ DUNG Nộp tiền | E28: 111 | F28: 1388 | G28: 6400000000 | H28: 0 | I28: THU | J28: 6400000000 | L28: 4. Egroup | M28: NGUYỄN THỊ DUNG
A29: 2021-10-01 | B29: 2021-10-01 | C29: NVK00193 | D29: Nguyễn Mạnh Phú trả tiền vay | E29: 111 | F29: 1283 | G29: 45000000000 | H29: 0 | I29: THU | J29: 45000000000 | L29: 4. Egroup | M29: NGUYỄN MẠNH PHÚ
A30: 2021-10-01 | B30: 2021-10-01 | C30: NVK00539 | D30: Nguyễn Mạnh Phú trả tiền vay | E30: 111 | F30: 1283 | G30: 1500000000 | H30: 0 | I30: THU | J30: 1500000000 | L30: 4. Egroup | M30: NGUYỄN MẠNH PHÚ
A31: 2021-10-05 | B31: 2021-10-05 | C31: NTTK00125 | D31: nộp tiền tk | E31: 111 | F31: 1121 | G31: 0 | H31: 100000 | I31: CHI* | J31: -100000 | L31: 0.Rút nộp | M31: Trần Anh Tuấn
A32: 2021-10-15 | B32: 2021-10-15 | C32: NVK00542 | D32: Nguyễn Mạnh Phú trả tiền vay | E32: 111 | F32: 1283 | G32: 15000000000 | H32: 0 | I32: THU | J32: 15000000000 | L32: 4. Egroup | M32: NGUYỄN MẠNH PHÚ
A33: 2021-10-20 | B33: 2021-10-20 | C33: NTTK00121 | D33: Nộp tiền vào TK | E33: 111 | F33: 1121 | G33: 0 | H33: 170000000 | I33: CHI* | J33: -170000000 | L33: 0.Rút nộp | M33: Trần Anh Tuấn
A34: 2021-10-20 | B34: 2021-10-20 | C34: NTTK00124 | D34: Nộp tiền vào TK | E34: 111 | F34: 1121 | G34: 0 | H34: 3300000000 | I34: CHI* | J34: -3300000000 | L34: 0.Rút nộp | M34: Trần Anh Tuấn
A35: 2021-10-21 | B35: 2021-10-21 | C35: STM00001 | D35: RÚT TIỀN | E35: 111 | F35: 1121 | G35: 825479452 | H35: 0 | I35: THU* | J35: 825479452 | L35: 0.Rút nộp | M35: Trần Anh Tuấn
A36: 2021-10-21 | B36: 2021-10-21 | C36: NTTK00126 | D36: Nộp tiền vào TK | E36: 111 | F36: 1121 | G36: 0 | H36: 8500000000 | I36: CHI* | J36: -8500000000 | L36: 0.Rút nộp | M36: Trần Anh Tuấn
A37: 2021-10-21 | B37: 2021-10-21 | C37: NTTK00127 | D37: Nộp tiền vào TK | E37: 111 | F37: 1121 | G37: 0 | H37: 9000000000 | I37: CHI* | J37: -9000000000 | L37: 0.Rút nộp | M37: Trần Anh Tuấn
A38: 2021-10-21 | B38: 2021-10-21 | C38: NTTK00128 | D38: Nộp tiền vào TK | E38: 111 | F38: 1121 | G38: 0 | H38: 3158633562 | I38: CHI* | J38: -3158633562 | L38: 0.Rút nộp | M38: Trần Anh Tuấn
A39: 2021-10-26 | B39: 2021-10-26 | C39: STM00002 | D39: RÚT TIỀN | E39: 111 | F39: 1121 | G39: 1303000000 | H39: 0 | I39: THU* | J39: 1303000000 | L39: 0.Rút nộp | M39: Trần Anh Tuấn
A40: 2021-10-26 | B40: 2021-10-26 | C40: STM00003 | D40: RÚT TIỀN | E40: 111 | F40: 1121 | G40: 2000000000 | H40: 0 | I40: THU* | J40: 2000000000 | L40: 0.Rút nộp | M40: Trần Anh Tuấn
A41: 2021-10-26 | B41: 2021-10-26 | C41: STM00004 | D41: RÚT TIỀN | E41: 111 | F41: 1121 | G41: 2000000000 | H41: 0 | I41: THU* | J41: 2000000000 | L41: 0.Rút nộp | M41: Trần Anh Tuấn
A42: 2021-10-26 | B42: 2021-10-26 | C42: STM00005 | D42: RÚT TIỀN | E42: 111 | F42: 1121 | G42: 2000000000 | H42: 0 | I42: THU* | J42: 2000000000 | L42: 0.Rút nộp | M42: Trần Anh Tuấn
A43: 2021-10-26 | B43: 2021-10-26 | C43: STM00006 | D43: RÚT TIỀN | E43: 111 | F43: 1121 | G43: 1919000000 | H43: 0 | I43: THU* | J43: 1919000000 | L43: 0.Rút nộp | M43: Trần Anh Tuấn
A44: 2021-10-26 | B44: 2021-10-26 | C44: STM00007 | D44: RÚT TIỀN | E44: 111 | F44: 1121 | G44: 2080000000 | H44: 0 | I44: THU* | J44: 2080000000 | L44: 0.Rút nộp | M44: Trần Anh Tuấn
A45: 2021-10-26 | B45: 2021-10-26 | C45: STM00008 | D45: RÚT TIỀN | E45: 111 | F45: 1121 | G45: 1700000000 | H45: 0 | I45: THU* | J45: 1700000000 | L45: 0.Rút nộp | M45: Trần Anh Tuấn
A46: 2021-10-27 | B46: 2021-10-27 | C46: UNC00164 | D46: CHUYEN KHOAN | E46: 111 | F46: 1121 | G46: 30292917 | H46: 0 | I46: THU* | J46: 30292917 | L46: 0.Rút nộp | M46: Trần Anh Tuấn
A47: 2021-10-27 | B47: 2021-10-27 | C47: UNC00164 | D47: CHUYEN KHOAN | E47: 111 | F47: 1121 | G47: 11194167 | H47: 0 | I47: THU* | J47: 11194167 | L47: 0.Rút nộp | M47: Trần Anh Tuấn
A48: 2021-10-27 | B48: 2021-10-27 | C48: UNC00164 | D48: CHUYEN KHOAN | E48: 111 | F48: 1121 | G48: 16937250 | H48: 0 | I48: THU* | J48: 16937250 | L48: 0.Rút nộp | M48: Trần Anh Tuấn
A49: 2021-10-27 | B49: 2021-10-27 | C49: NTTK00147 | D49: Nộp tiền vào TK | E49: 111 | F49: 1121 | G49: 0 | H49: 30000000 | I49: CHI* | J49: -30000000 | L49: 0.Rút nộp | M49: Trần Anh Tuấn
A50: 2021-10-28 | B50: 2021-10-28 | C50: NTTK00148 | D50: ĐỖ NGỌC TÚ nộp tiền mua trái phiếu Ozen | E50: 111 | F50: 12822 | G50: 200000000 | H50: 0 | I50: THU | J50: 200000000 | L50: 2. Trái Phiếu | M50: ĐỖ NGỌC TÚ
A51: 2021-11-02 | B51: 2021-11-02 | C51: STM00009 | D51: RÚT TIỀN | E51: 111 | F51: 1121 | G51: 10000000 | H51: 0 | I51: THU* | J51: 10000000 | L51: 0.Rút nộp | M51: Trần Anh Tuấn
A52: 2021-11-04 | B52: 2021-11-04 | C52: STM00010 | D52: RÚT TIỀN | E52: 111 | F52: 1121 | G52: 48000000 | H52: 0 | I52: THU* | J52: 48000000 | L52: 0.Rút nộp | M52: Trần Anh Tuấn
A53: 2021-11-09 | B53: 2021-11-09 | C53: STM00011 | D53: RÚT TIỀN | E53: 111 | F53: 1121 | G53: 50000000 | H53: 0 | I53: THU* | J53: 50000000 | L53: 0.Rút nộp | M53: Trần Anh Tuấn
A54: 2021-11-11 | B54: 2021-11-11 | C54: NTTK00152 | D54: Nộp tiền vào TK | E54: 111 | F54: 1121 | G54: 0 | H54: 16000000 | I54: CHI* | J54: -16000000 | L54: 0.Rút nộp | M54: Trần Anh Tuấn
A55: 2021-11-15 | B55: 2021-11-15 | C55: NVK00537 | D55: Nguyễn Mạnh Phú trả tiền vay | E55: 111 | F55: 1283 | G55: 20089550000 | H55: 0 | I55: THU | J55: 20089550000 | L55: 4. Egroup | M55: NGUYỄN MẠNH PHÚ
A56: 2021-11-15 | B56: 2021-11-15 | C56: PT00002 | D56: ĐỖ MINH PHƯỢNG nộp tiền mua TP | E56: 111 | F56: 12822 | G56: 2720000000 | H56: 0 | I56: THU | J56: 2720000000 | L56: 2. Trái Phiếu | M56: ĐỖ MINH PHƯỢNG
A57: 2021-11-16 | B57: 2021-11-16 | C57: NTTK00154 | D57: Nộp tiền vào TK | E57: 111 | F57: 1121 | G57: 0 | H57: 10000000000 | I57: CHI* | J57: -10000000000 | L57: 0.Rút nộp | M57: Trần Anh Tuấn
A58: 2021-11-16 | B58: 2021-11-16 | C58: NTTK00155 | D58: Nộp tiền vào TK | E58: 111 | F58: 1121 | G58: 0 | H58: 10000000000 | I58: CHI* | J58: -10000000000 | L58: 0.Rút nộp | M58: Trần Anh Tuấn
A59: 2021-11-16 | B59: 2021-11-16 | C59: NTTK00156 | D59: Nộp tiền vào TK | E59: 111 | F59: 1121 | G59: 0 | H59: 10000000000 | I59: CHI* | J59: -10000000000 | L59: 0.Rút nộp | M59: Trần Anh Tuấn
A60: 2021-11-16 | B60: 2021-11-16 | C60: NTTK00157 | D60: Nộp tiền vào TK | E60: 111 | F60: 1121 | G60: 0 | H60: 7000000000 | I60: CHI* | J60: -7000000000 | L60: 0.Rút nộp | M60: Trần Anh Tuấn
A61: 2021-11-16 | B61: 2021-11-16 | C61: NTTK00158 | D61: Nộp tiền vào TK | E61: 111 | F61: 1121 | G61: 0 | H61: 7000000000 | I61: CHI* | J61: -7000000000 | L61: 0.Rút nộp | M61: Trần Anh Tuấn
A62: 2021-11-16 | B62: 2021-11-16 | C62: NTTK00159 | D62: Nộp tiền vào TK | E62: 111 | F62: 1121 | G62: 0 | H62: 7000000000 | I62: CHI* | J62: -7000000000 | L62: 0.Rút nộp | M62: Trần Anh Tuấn
A63: 2021-11-17 | B63: 2021-11-17 | C63: STM00012 | D63: RÚT TIỀN | E63: 111 | F63: 1121 | G63: 2832000000 | H63: 0 | I63: THU* | J63: 2832000000 | L63: 0.Rút nộp | M63: Trần Anh Tuấn
A64: 2021-11-17 | B64: 2021-11-17 | C64: STM00012 | D64: RÚT TIỀN | E64: 111 | F64: 1121 | G64: 618000000 | H64: 0 | I64: THU* | J64: 618000000 | L64: 0.Rút nộp | M64: Trần Anh Tuấn
A65: 2021-11-18 | B65: 2021-11-18 | C65: NTTK00161 | D65: Nộp tiền vào TK | E65: 111 | F65: 1121 | G65: 0 | H65: 17000000000 | I65: CHI* | J65: -17000000000 | L65: 0.Rút nộp | M65: Trần Anh Tuấn
A66: 2021-11-18 | B66: 2021-11-18 | C66: NTTK00162 | D66: Nộp tiền vào TK | E66: 111 | F66: 1121 | G66: 0 | H66: 213744000 | I66: CHI* | J66: -213744000 | L66: 0.Rút nộp | M66: Trần Anh Tuấn
A67: 2021-11-19 | B67: 2021-11-19 | C67: STM00013 | D67: RÚT TIỀN | E67: 111 | F67: 1121 | G67: 4000000000 | H67: 0 | I67: THU* | J67: =G67-H67 -> 4000000000 | L67: 0.Rút nộp | M67: Trần Anh Tuấn
A68: 2021-11-19 | B68: 2021-11-19 | C68: NTTK00164 | D68: Nộp tiền vào TK | E68: 111 | F68: 1121 | G68: 0 | H68: 360000000 | I68: CHI* | J68: -360000000 | L68: 0.Rút nộp | M68: Trần Anh Tuấn
A69: 2021-11-19 | B69: 2021-11-19 | C69: PC00025 | D69: Chi tiền mua CP | E69: 111 | F69: 221 | G69: 0 | H69: 3500000000 | I69: CHI | J69: -3500000000 | L69: 5. Cổ phần | M69: NGUYỄN THỊ DUNG
A70: 2021-11-22 | B70: 2021-11-22 | C70: STM00014 | D70: RÚT TIỀN | E70: 111 | F70: 1121 | G70: 500000000 | H70: 0 | I70: THU* | J70: 500000000 | L70: 0.Rút nộp | M70: Trần Anh Tuấn
A71: 2021-11-22 | B71: 2021-11-22 | C71: STM00015 | D71: RÚT TIỀN | E71: 111 | F71: 1121 | G71: 1900000000 | H71: 0 | I71: THU* | J71: 1900000000 | L71: 0.Rút nộp | M71: Trần Anh Tuấn
A72: 2021-11-22 | B72: 2021-11-22 | C72: STM00016 | D72: RÚT TIỀN | E72: 111 | F72: 1121 | G72: 3300000000 | H72: 0 | I72: THU* | J72: 3300000000 | L72: 0.Rút nộp | M72: Trần Anh Tuấn
A73: 2021-11-23 | B73: 2021-11-23 | C73: STM00017 | D73: RÚT TIỀN | E73: 111 | F73: 1121 | G73: 1770000000 | H73: 0 | I73: THU* | J73: 1770000000 | L73: 0.Rút nộp | M73: Trần Anh Tuấn
A74: 2021-11-23 | B74: 2021-11-23 | C74: STM00018 | D74: RÚT TIỀN | E74: 111 | F74: 1121 | G74: 1500000000 | H74: 0 | I74: THU* | J74: 1500000000 | L74: 0.Rút nộp | M74: Trần Anh Tuấn
A75: 2021-11-23 | B75: 2021-11-23 | C75: STM00019 | D75: RÚT TIỀN | E75: 111 | F75: 1121 | G75: 600000000 | H75: 0 | I75: THU* | J75: 600000000 | L75: 0.Rút nộp | M75: Trần Anh Tuấn
A76: 2021-11-23 | B76: 2021-11-23 | C76: STM00020 | D76: RÚT TIỀN | E76: 111 | F76: 1121 | G76: 300000000 | H76: 0 | I76: THU* | J76: 300000000 | L76: 0.Rút nộp | M76: Trần Anh Tuấn
A77: 2021-11-24 | B77: 2021-11-24 | C77: PT00015 | D77: HOÀNG THÚY BÍCH nộp tiền mua TP | E77: 111 | F77: 12824 | G77: 300000000 | H77: 0 | I77: THU | J77: 300000000 | L77: 2. Trái Phiếu | M77: HOÀNG THÚY BÍCH
A78: 2021-11-24 | B78: 2021-11-24 | C78: STM00021 | D78: RÚT TIỀN | E78: 111 | F78: 1121 | G78: 400000000 | H78: 0 | I78: THU* | J78: 400000000 | L78: 0.Rút nộp | M78: Trần Anh Tuấn
A79: 2021-11-24 | B79: 2021-11-24 | C79: STM00021 | D79: RÚT TIỀN | E79: 111 | F79: 1121 | G79: 390000000 | H79: 0 | I79: THU* | J79: 390000000 | L79: 0.Rút nộp | M79: Trần Anh Tuấn
A80: 2021-11-24 | B80: 2021-11-24 | C80: STM00021 | D80: RÚT TIỀN | E80: 111 | F80: 1121 | G80: 400000000 | H80: 0 | I80: THU* | J80: 400000000 | L80: 0.Rút nộp | M80: Trần Anh Tuấn
A81: 2021-11-25 | B81: 2021-11-25 | C81: PT00024 | D81: TẠ BÍCH NGỌC nộp tiền mua TP | E81: 111 | F81: 12824 | G81: 200000000 | H81: 0 | I81: THU | J81: 200000000 | L81: 2. Trái Phiếu | M81: TẠ BÍCH NGỌC
A82: 2021-11-25 | B82: 2021-11-25 | C82: STM00024 | D82: RÚT TIỀN | E82: 111 | F82: 1121 | G82: 20000000 | H82: 0 | I82: THU* | J82: 20000000 | L82: 0.Rút nộp | M82: Trần Anh Tuấn
A83: 2021-11-26 | B83: 2021-11-26 | C83: PT00019 | D83: NGUYỄN THỊ NGỌC TRINH nộp tiền mua TP | E83: 111 | F83: 12824 | G83: 500000000 | H83: 0 | I83: THU | J83: 500000000 | L83: 2. Trái Phiếu | M83: NGUYỄN THỊ NGỌC TRINH
A84: 2021-11-26 | B84: 2021-11-26 | C84: PT00028 | D84: TRẦN THANH MAI nộp tiền mua TP | E84: 111 | F84: 12824 | G84: 150000000 | H84: 0 | I84: THU | J84: 150000000 | L84: 2. Trái Phiếu | M84: TRẦN THANH MAI
A85: 2021-11-26 | B85: 2021-11-26 | C85: STM00022 | D85: RÚT TIỀN | E85: 111 | F85: 1121 | G85: 3300000000 | H85: 0 | I85: THU* | J85: 3300000000 | L85: 0.Rút nộp | M85: Trần Anh Tuấn
A86: 2021-11-26 | B86: 2021-11-26 | C86: STM00025 | D86: RÚT TIỀN | E86: 111 | F86: 1121 | G86: 150000000 | H86: 0 | I86: THU* | J86: 150000000 | L86: 0.Rút nộp | M86: Trần Anh Tuấn
A87: 2021-11-26 | B87: 2021-11-26 | C87: NTTK00209 | D87: Nộp tiền TK | E87: 111 | F87: 1121 | G87: 0 | H87: 257000000 | I87: CHI* | J87: -257000000 | L87: 0.Rút nộp | M87: Trần Anh Tuấn
A88: 2021-11-26 | B88: 2021-11-26 | C88: PC00026 | D88: Chi tiền mua CP | E88: 111 | F88: 221 | G88: 0 | H88: 14000000000 | I88: CHI | J88: -14000000000 | L88: 5. Cổ phần | M88: NGUYỄN NGỌC THỦY
A89: 2021-11-27 | B89: 2021-11-27 | C89: NTTK00210 | D89: ĐÀO NGỌC PHÁCH nộp tiền mua trái phiếu | E89: 111 | F89: 12824 | G89: 300000000 | H89: 0 | I89: THU | J89: 300000000 | L89: 2. Trái Phiếu | M89: ĐÀO NGỌC PHÁCH
A90: 2021-11-27 | B90: 2021-11-27 | C90: STM00026 | D90: RÚT TIỀN | E90: 111 | F90: 1121 | G90: 46431073 | H90: 0 | I90: THU* | J90: 46431073 | L90: 0.Rút nộp | M90: Trần Anh Tuấn
A91: 2021-11-27 | B91: 2021-11-27 | C91: STM00026 | D91: RÚT TIỀN | E91: 111 | F91: 1121 | G91: 24318750 | H91: 0 | I91: THU* | J91: 24318750 | L91: 0.Rút nộp | M91: Trần Anh Tuấn
A92: 2021-11-27 | B92: 2021-11-27 | C92: STM00026 | D92: RÚT TIỀN | E92: 111 | F92: 1121 | G92: 16779104 | H92: 0 | I92: THU* | J92: 16779104 | L92: 0.Rút nộp | M92: Trần Anh Tuấn
A93: 2021-11-30 | B93: 2021-11-30 | C93: NTTK00221 | D93: HOÀNG THÚY BÍCH nộp tiền mua trái phiếu | E93: 111 | F93: 12824 | G93: 300000000 | H93: 0 | I93: THU | J93: 300000000 | L93: 2. Trái Phiếu | M93: HOÀNG THÚY BÍCH
A94: 2021-11-30 | B94: 2021-11-30 | C94: STM00027 | D94: RÚT TIỀN | E94: 111 | F94: 1121 | G94: 1000000000 | H94: 0 | I94: THU* | J94: 1000000000 | L94: 0.Rút nộp | M94: Trần Anh Tuấn
A95: 2021-11-30 | B95: 2021-11-30 | C95: STM00028 | D95: RÚT TIỀN | E95: 111 | F95: 1121 | G95: 960000000 | H95: 0 | I95: THU* | J95: 960000000 | L95: 0.Rút nộp | M95: Trần Anh Tuấn
A96: 2021-11-30 | B96: 2021-11-30 | C96: STM00029 | D96: RÚT TIỀN | E96: 111 | F96: 1121 | G96: 450000000 | H96: 0 | I96: THU* | J96: 450000000 | L96: 0.Rút nộp | M96: Trần Anh Tuấn
A97: 2021-11-30 | B97: 2021-11-30 | C97: STM00029 | D97: RÚT TIỀN | E97: 111 | F97: 1121 | G97: 450000000 | H97: 0 | I97: THU* | J97: 450000000 | L97: 0.Rút nộp | M97: Trần Anh Tuấn
A98: 2021-11-30 | B98: 2021-11-30 | C98: STM00029 | D98: RÚT TIỀN | E98: 111 | F98: 1121 | G98: 380000000 | H98: 0 | I98: THU* | J98: 380000000 | L98: 0.Rút nộp | M98: Trần Anh Tuấn
A99: 2021-12-01 | B99: 2021-12-01 | C99: PT00065 | D99: NGUYỄN THỊ THU TRANG nộp tiền mua trái phiếu | E99: 111 | F99: 12824 | G99: 30000000 | H99: 0 | I99: THU | J99: 30000000 | L99: 2. Trái Phiếu | M99: NGUYỄN THỊ THU TRANG
A100: 2021-12-01 | B100: 2021-12-01 | C100: PT00066 | D100: NGUYỄN THỊ THỦY nộp tiền mua trái phiếu | E100: 111 | F100: 12822 | G100: 250000000 | H100: 0 | I100: THU | J100: 250000000 | L100: 2. Trái Phiếu | M100: NGUYỄN THỊ THỦY
A101: 2021-12-01 | B101: 2021-12-01 | C101: PT00067 | D101: TRẦN VĂN THÀNH nộp tiền mua trái phiếu | E101: 111 | F101: 12824 | G101: 1010000000 | H101: 0 | I101: THU | J101: 1010000000 | L101: 2. Trái Phiếu | M101: TRẦN VĂN THÀNH
A102: 2021-12-01 | B102: 2021-12-01 | C102: PT00067 | D102: TRẦN VĂN THÀNH nộp tiền mua trái phiếu | E102: 111 | F102: 515 | G102: 1971575 | H102: 0 | I102: THU | J102: 1971575 | L102: 2. Trái Phiếu | M102: TRẦN VĂN THÀNH
A103: 2021-12-01 | B103: 2021-12-01 | C103: PT00068 | D103: NGUYỄN THU DUNG nộp tiền mua trái phiếu | E103: 111 | F103: 12824 | G103: 800000 | H103: 0 | I103: THU | J103: 800000 | L103: 2. Trái Phiếu | M103: NGUYỄN THU DUNG
A104: 2021-12-01 | B104: 2021-12-01 | C104: STM00030 | D104: RÚT TIỀN | E104: 111 | F104: 1121 | G104: 1710000000 | H104: 0 | I104: THU* | J104: 1710000000 | L104: 0.Rút nộp | M104: Trần Anh Tuấn
A105: 2021-12-01 | B105: 2021-12-01 | C105: STM00031 | D105: RÚT TIỀN | E105: 111 | F105: 1121 | G105: 2000000000 | H105: 0 | I105: THU* | J105: 2000000000 | L105: 0.Rút nộp | M105: Trần Anh Tuấn
A106: 2021-12-01 | B106: 2021-12-01 | C106: STM00032 | D106: RÚT TIỀN | E106: 111 | F106: 1121 | G106: 2360000000 | H106: 0 | I106: THU* | J106: 2360000000 | L106: 0.Rút nộp | M106: Trần Anh Tuấn
A107: 2021-12-01 | B107: 2021-12-01 | C107: STM00032 | D107: RÚT TIỀN | E107: 111 | F107: 1121 | G107: 1500000000 | H107: 0 | I107: THU* | J107: 1500000000 | L107: 0.Rút nộp | M107: Trần Anh Tuấn
A108: 2021-12-01 | B108: 2021-12-01 | C108: STM00032 | D108: RÚT TIỀN | E108: 111 | F108: 1121 | G108: 50000000 | H108: 0 | I108: THU* | J108: 50000000 | L108: 0.Rút nộp | M108: Trần Anh Tuấn
A109: 2021-12-01 | B109: 2021-12-01 | C109: STM00032 | D109: RÚT TIỀN | E109: 111 | F109: 1121 | G109: 450000000 | H109: 0 | I109: THU* | J109: 450000000 | L109: 0.Rút nộp | M109: Trần Anh Tuấn
A110: 2021-12-01 | B110: 2021-12-01 | C110: STM00033 | D110: RÚT TIỀN | E110: 111 | F110: 1121 | G110: 300000000 | H110: 0 | I110: THU* | J110: 300000000 | L110: 0.Rút nộp | M110: Trần Anh Tuấn
A111: 2021-12-02 | B111: 2021-12-02 | C111: STM00034 | D111: RÚT TIỀN | E111: 111 | F111: 1121 | G111: 400000000 | H111: 0 | I111: THU* | J111: 400000000 | L111: 0.Rút nộp | M111: Trần Anh Tuấn
A112: 2021-12-02 | B112: 2021-12-02 | C112: STM00035 | D112: RÚT TIỀN | E112: 111 | F112: 1121 | G112: 400000000 | H112: 0 | I112: THU* | J112: 400000000 | L112: 0.Rút nộp | M112: Trần Anh Tuấn
A113: 2021-12-02 | B113: 2021-12-02 | C113: STM00036 | D113: RÚT TIỀN | E113: 111 | F113: 1121 | G113: 500000000 | H113: 0 | I113: THU* | J113: 500000000 | L113: 0.Rút nộp | M113: Trần Anh Tuấn
A114: 2021-12-02 | B114: 2021-12-02 | C114: STM00037 | D114: RÚT TIỀN | E114: 111 | F114: 1121 | G114: 310000000 | H114: 0 | I114: THU* | J114: 310000000 | L114: 0.Rút nộp | M114: Trần Anh Tuấn
A115: 2021-12-02 | B115: 2021-12-02 | C115: STM00037 | D115: RÚT TIỀN | E115: 111 | F115: 1121 | G115: 400000000 | H115: 0 | I115: THU* | J115: 400000000 | L115: 0.Rút nộp | M115: Trần Anh Tuấn
A116: 2021-12-02 | B116: 2021-12-02 | C116: NTTK00411 | D116: Nộp tiền vào TK | E116: 111 | F116: 1121 | G116: 0 | H116: 300000000 | I116: CHI* | J116: -300000000 | L116: 0.Rút nộp | M116: Trần Anh Tuấn
A117: 2021-12-02 | B117: 2021-12-02 | C117: PC00027 | D117: Chi tiền mua CP | E117: 111 | F117: 221 | G117: 0 | H117: 12500000000 | I117: CHI | J117: -12500000000 | L117: 5. Cổ phần | M117: NGUYỄN NGỌC THỦY
A118: 2021-12-03 | B118: 2021-12-03 | C118: STM00038 | D118: RÚT TIỀN | E118: 111 | F118: 1121 | G118: 800000000 | H118: 0 | I118: THU* | J118: 800000000 | L118: 0.Rút nộp | M118: Trần Anh Tuấn
A119: 2021-12-03 | B119: 2021-12-03 | C119: STM00038 | D119: RÚT TIỀN | E119: 111 | F119: 1121 | G119: 2000000000 | H119: 0 | I119: THU* | J119: 2000000000 | L119: 0.Rút nộp | M119: Trần Anh Tuấn
A120: 2021-12-03 | B120: 2021-12-03 | C120: STM00038 | D120: RÚT TIỀN | E120: 111 | F120: 1121 | G120: 290000000 | H120: 0 | I120: THU* | J120: 290000000 | L120: 0.Rút nộp | M120: Trần Anh Tuấn
A121: 2021-12-03 | B121: 2021-12-03 | C121: STM00039 | D121: CHUYỂN KHOẢN | E121: 111 | F121: 1121 | G121: 222000000 | H121: 0 | I121: THU* | J121: 222000000 | L121: 0.Rút nộp | M121: Trần Anh Tuấn
A122: 2021-12-03 | B122: 2021-12-03 | C122: STM00044 | D122: RÚT TIỀN | E122: 111 | F122: 1121 | G122: 410000000 | H122: 0 | I122: THU* | J122: 410000000 | L122: 0.Rút nộp | M122: Trần Anh Tuấn
A123: 2021-12-06 | B123: 2021-12-06 | C123: STM00045 | D123: RÚT TIỀN | E123: 111 | F123: 1121 | G123: 740000000 | H123: 0 | I123: THU* | J123: 740000000 | L123: 0.Rút nộp | M123: Trần Anh Tuấn
A124: 2021-12-07 | B124: 2021-12-07 | C124: PT00069 | D124: NGUYỄN THÁI HỌC nộp tiền mua trái phiếu | E124: 111 | F124: 12824 | G124: 1000000000 | H124: 0 | I124: THU | J124: 1000000000 | L124: 2. Trái Phiếu | M124: NGUYỄN THÁI HỌC
A125: 2021-12-07 | B125: 2021-12-07 | C125: PT00069 | D125: NGUYỄN THÁI HỌC nộp tiền mua trái phiếu | E125: 111 | F125: 515 | G125: 4229452 | H125: 0 | I125: THU | J125: 4229452 | L125: 2. Trái Phiếu | M125: NGUYỄN THÁI HỌC
A126: 2021-12-07 | B126: 2021-12-07 | C126: PT00070 | D126: NGUYỄN THỊ MINH HUỆ nộp tiền mua trái phiếu | E126: 111 | F126: 515 | G126: 5921233 | H126: 0 | I126: THU | J126: 5921233 | L126: 2. Trái Phiếu | M126: NGUYỄN THỊ MINH HUỆ
A127: 2021-12-07 | B127: 2021-12-07 | C127: STM00047 | D127: RÚT TIỀN | E127: 111 | F127: 1121 | G127: 3000000000 | H127: 0 | I127: THU* | J127: 3000000000 | L127: 0.Rút nộp | M127: Trần Anh Tuấn
A128: 2021-12-08 | B128: 2021-12-08 | C128: NTTK00266 | D128: ĐỖ THỊ THUẬN nộp tiền mua trái phiếu | E128: 111 | F128: 12824 | G128: 510000000 | H128: 0 | I128: THU | J128: 510000000 | L128: 2. Trái Phiếu | M128: ĐỖ THỊ THUẬN
A129: 2021-12-08 | B129: 2021-12-08 | C129: STM00048 | D129: RÚT TIỀN | E129: 111 | F129: 1121 | G129: 900000000 | H129: 0 | I129: THU* | J129: 900000000 | L129: 0.Rút nộp | M129: Trần Anh Tuấn
A130: 2021-12-08 | B130: 2021-12-08 | C130: STM00049 | D130: RÚT TIỀN | E130: 111 | F130: 1121 | G130: 412000000 | H130: 0 | I130: THU* | J130: 412000000 | L130: 0.Rút nộp | M130: Trần Anh Tuấn
A131: 2021-12-08 | B131: 2021-12-08 | C131: STM00050 | D131: RÚT TIỀN | E131: 111 | F131: 1121 | G131: 900000000 | H131: 0 | I131: THU* | J131: =G131-H131 -> 900000000 | L131: 0.Rút nộp | M131: Trần Anh Tuấn
A132: 2021-12-08 | B132: 2021-12-08 | C132: STM00112 | D132: RÚT TIỀN | E132: 111 | F132: 1121 | G132: 300000000 | H132: 0 | I132: THU* | J132: 300000000 | L132: 0.Rút nộp | M132: Trần Anh Tuấn
A133: 2021-12-08 | B133: 2021-12-08 | C133: STM00113 | D133: RÚT TIỀN | E133: 111 | F133: 1121 | G133: 300000000 | H133: 0 | I133: THU* | J133: 300000000 | L133: 0.Rút nộp | M133: Trần Anh Tuấn
A134: 2021-12-08 | B134: 2021-12-08 | C134: STM00114 | D134: RÚT TIỀN | E134: 111 | F134: 1121 | G134: 300000000 | H134: 0 | I134: THU* | J134: 300000000 | L134: 0.Rút nộp | M134: Trần Anh Tuấn
A135: 2021-12-08 | B135: 2021-12-08 | C135: STM00115 | D135: RÚT TIỀN | E135: 111 | F135: 1121 | G135: 300000000 | H135: 0 | I135: THU* | J135: 300000000 | L135: 0.Rút nộp | M135: Trần Anh Tuấn
A136: 2021-12-08 | B136: 2021-12-08 | C136: STM00116 | D136: RÚT TIỀN | E136: 111 | F136: 1121 | G136: 300000000 | H136: 0 | I136: THU* | J136: 300000000 | L136: 0.Rút nộp | M136: Trần Anh Tuấn
A137: 2021-12-09 | B137: 2021-12-09 | C137: STM00051 | D137: RÚT TIỀN | E137: 111 | F137: 1121 | G137: 1000000000 | H137: 0 | I137: THU* | J137: 1000000000 | L137: 0.Rút nộp | M137: Trần Anh Tuấn
A138: 2021-12-09 | B138: 2021-12-09 | C138: STM00051 | D138: RÚT TIỀN | E138: 111 | F138: 1121 | G138: 600000000 | H138: 0 | I138: THU* | J138: 600000000 | L138: 0.Rút nộp | M138: Trần Anh Tuấn
A139: 2021-12-09 | B139: 2021-12-09 | C139: STM00051 | D139: RÚT TIỀN | E139: 111 | F139: 1121 | G139: 1800000000 | H139: 0 | I139: THU* | J139: 1800000000 | L139: 0.Rút nộp | M139: Trần Anh Tuấn
A140: 2021-12-10 | B140: 2021-12-10 | C140: STM00052 | D140: RÚT TIỀN | E140: 111 | F140: 1121 | G140: 1005000000 | H140: 0 | I140: THU* | J140: 1005000000 | L140: 0.Rút nộp | M140: Trần Anh Tuấn
A141: 2021-12-11 | B141: 2021-12-11 | C141: STM00053 | D141: RÚT TIỀN | E141: 111 | F141: 1121 | G141: 480000000 | H141: 0 | I141: THU* | J141: 480000000 | L141: 0.Rút nộp | M141: Trần Anh Tuấn
A142: 2021-12-11 | B142: 2021-12-11 | C142: STM00053 | D142: RÚT TIỀN | E142: 111 | F142: 1121 | G142: 450000000 | H142: 0 | I142: THU* | J142: 450000000 | L142: 0.Rút nộp | M142: Trần Anh Tuấn
A143: 2021-12-11 | B143: 2021-12-11 | C143: STM00053 | D143: RÚT TIỀN | E143: 111 | F143: 1121 | G143: 450000000 | H143: 0 | I143: THU* | J143: 450000000 | L143: 0.Rút nộp | M143: Trần Anh Tuấn
A144: 2021-12-11 | B144: 2021-12-11 | C144: STM00053 | D144: RÚT TIỀN | E144: 111 | F144: 1121 | G144: 450000000 | H144: 0 | I144: THU* | J144: 450000000 | L144: 0.Rút nộp | M144: Trần Anh Tuấn
A145: 2021-12-11 | B145: 2021-12-11 | C145: STM00053 | D145: RÚT TIỀN | E145: 111 | F145: 1121 | G145: 200000000 | H145: 0 | I145: THU* | J145: 200000000 | L145: 0.Rút nộp | M145: Trần Anh Tuấn
A146: 2021-12-11 | B146: 2021-12-11 | C146: STM00054 | D146: RÚT TIỀN | E146: 111 | F146: 1121 | G146: 450000000 | H146: 0 | I146: THU* | J146: 450000000 | L146: 0.Rút nộp | M146: Trần Anh Tuấn
A147: 2021-12-11 | B147: 2021-12-11 | C147: STM00054 | D147: RÚT TIỀN | E147: 111 | F147: 1121 | G147: 450000000 | H147: 0 | I147: THU* | J147: 450000000 | L147: 0.Rút nộp | M147: Trần Anh Tuấn
A148: 2021-12-11 | B148: 2021-12-11 | C148: STM00054 | D148: RÚT TIỀN | E148: 111 | F148: 1121 | G148: 400000000 | H148: 0 | I148: THU* | J148: 400000000 | L148: 0.Rút nộp | M148: Trần Anh Tuấn
A149: 2021-12-11 | B149: 2021-12-11 | C149: STM00054 | D149: RÚT TIỀN | E149: 111 | F149: 1121 | G149: 450000000 | H149: 0 | I149: THU* | J149: 450000000 | L149: 0.Rút nộp | M149: Trần Anh Tuấn
A150: 2021-12-11 | B150: 2021-12-11 | C150: STM00117 | D150: RÚT TIỀN | E150: 111 | F150: 1121 | G150: 300000000 | H150: 0 | I150: THU* | J150: 300000000 | L150: 0.Rút nộp | M150: Trần Anh Tuấn
A151: 2021-12-11 | B151: 2021-12-11 | C151: STM00118 | D151: RÚT TIỀN | E151: 111 | F151: 1121 | G151: 300000000 | H151: 0 | I151: THU* | J151: 300000000 | L151: 0.Rút nộp | M151: Trần Anh Tuấn
A152: 2021-12-11 | B152: 2021-12-11 | C152: STM00119 | D152: RÚT TIỀN | E152: 111 | F152: 1121 | G152: 300000000 | H152: 0 | I152: THU* | J152: 300000000 | L152: 0.Rút nộp | M152: Trần Anh Tuấn
A153: 2021-12-11 | B153: 2021-12-11 | C153: STM00120 | D153: RÚT TIỀN | E153: 111 | F153: 1121 | G153: 300000000 | H153: 0 | I153: THU* | J153: 300000000 | L153: 0.Rút nộp | M153: Trần Anh Tuấn
A154: 2021-12-11 | B154: 2021-12-11 | C154: STM00121 | D154: RÚT TIỀN | E154: 111 | F154: 1121 | G154: 300000000 | H154: 0 | I154: THU* | J154: 300000000 | L154: 0.Rút nộp | M154: Trần Anh Tuấn
A155: 2021-12-11 | B155: 2021-12-11 | C155: STM00122 | D155: RÚT TIỀN | E155: 111 | F155: 1121 | G155: 300000000 | H155: 0 | I155: THU* | J155: 300000000 | L155: 0.Rút nộp | M155: Trần Anh Tuấn
A156: 2021-12-11 | B156: 2021-12-11 | C156: STM00123 | D156: RÚT TIỀN | E156: 111 | F156: 1121 | G156: 100000000 | H156: 0 | I156: THU* | J156: 100000000 | L156: 0.Rút nộp | M156: Trần Anh Tuấn
A157: 2021-12-13 | B157: 2021-12-13 | C157: STM00055 | D157: RÚT TIỀN | E157: 111 | F157: 1121 | G157: 2400000000 | H157: 0 | I157: THU* | J157: 2400000000 | L157: 0.Rút nộp | M157: Trần Anh Tuấn
A158: 2021-12-13 | B158: 2021-12-13 | C158: STM00055 | D158: RÚT TIỀN | E158: 111 | F158: 1121 | G158: 700000000 | H158: 0 | I158: THU* | J158: 700000000 | L158: 0.Rút nộp | M158: Trần Anh Tuấn
A159: 2021-12-14 | B159: 2021-12-14 | C159: NTTK00311 | D159: HOÀNG THÚY BÍCH nộp tiền mua trái phiếu | E159: 111 | F159: 12824 | G159: 300000000 | H159: 0 | I159: THU | J159: 300000000 | L159: 2. Trái Phiếu | M159: HOÀNG THÚY BÍCH
A160: 2021-12-14 | B160: 2021-12-14 | C160: NVK00626 | D160: phí in ấn | E160: 111 | F160: 6422 | G160: 0 | H160: 315000 | I160: CHI | J160: -315000 | L160: 1. Chi hoạt động | M160: Chi phí vận hành
A161: 2021-12-14 | B161: 2021-12-14 | C161: NVK00626 | D161: phí in ấn | E161: 111 | F161: 1331 | G161: 0 | H161: 31500 | I161: CHI | J161: -31500 | L161: 1. Chi hoạt động | M161: NCC
A162: 2021-12-15 | B162: 2021-12-15 | C162: PT00071 | D162: NGUYỄN THU THỦY nộp tiền mua trái phiếu | E162: 111 | F162: 12824 | G162: 510000000 | H162: 0 | I162: THU | J162: 510000000 | L162: 2. Trái Phiếu | M162: NGUYỄN THU THỦY
A163: 2021-12-15 | B163: 2021-12-15 | C163: STM00056 | D163: RÚT TIỀN | E163: 111 | F163: 1121 | G163: 2250000000 | H163: 0 | I163: THU* | J163: 2250000000 | L163: 0.Rút nộp | M163: Trần Anh Tuấn
A164: 2021-12-16 | B164: 2021-12-16 | C164: STM00057 | D164: RÚT TIỀN | E164: 111 | F164: 1121 | G164: 1450000000 | H164: 0 | I164: THU* | J164: 1450000000 | L164: 0.Rút nộp | M164: Trần Anh Tuấn
A165: 2021-12-16 | B165: 2021-12-16 | C165: STM00124 | D165: RÚT TIỀN | E165: 111 | F165: 1121 | G165: 300000000 | H165: 0 | I165: THU* | J165: 300000000 | L165: 0.Rút nộp | M165: Trần Anh Tuấn
A166: 2021-12-17 | B166: 2021-12-17 | C166: PT00072 | D166: TRẦN THỊ HẢI YẾN nộp tiền mua trái phiếu | E166: 111 | F166: 12824 | G166: 1000000000 | H166: 0 | I166: THU | J166: 1000000000 | L166: 2. Trái Phiếu | M166: TRẦN THỊ HẢI YẾN
A167: 2021-12-17 | B167: 2021-12-17 | C167: PT00073 | D167: LÊ THỊ TUYẾT NHUNG nộp tiền mua trái phiếu | E167: 111 | F167: 12824 | G167: 300000000 | H167: 0 | I167: THU | J167: 300000000 | L167: 2. Trái Phiếu | M167: LÊ THỊ TUYẾT NHUNG
A168: 2021-12-17 | B168: 2021-12-17 | C168: STM00058 | D168: RÚT TIỀN | E168: 111 | F168: 1121 | G168: 310000000 | H168: 0 | I168: THU* | J168: 310000000 | L168: 0.Rút nộp | M168: Trần Anh Tuấn
A169: 2021-12-17 | B169: 2021-12-17 | C169: STM00125 | D169: RÚT TIỀN | E169: 111 | F169: 1121 | G169: 300000000 | H169: 0 | I169: THU* | J169: 300000000 | L169: 0.Rút nộp | M169: Trần Anh Tuấn
A170: 2021-12-17 | B170: 2021-12-17 | C170: STM00126 | D170: RÚT TIỀN | E170: 111 | F170: 1121 | G170: 200000000 | H170: 0 | I170: THU* | J170: 200000000 | L170: 0.Rút nộp | M170: Trần Anh Tuấn
A171: 2021-12-20 | B171: 2021-12-20 | C171: STM00059 | D171: RÚT TIỀN | E171: 111 | F171: 1121 | G171: 300000000 | H171: 0 | I171: THU* | J171: 300000000 | L171: 0.Rút nộp | M171: Trần Anh Tuấn
A172: 2021-12-20 | B172: 2021-12-20 | C172: STM00060 | D172: RÚT TIỀN | E172: 111 | F172: 1121 | G172: 900000000 | H172: 0 | I172: THU* | J172: 900000000 | L172: 0.Rút nộp | M172: Trần Anh Tuấn
A173: 2021-12-20 | B173: 2021-12-20 | C173: STM00061 | D173: RÚT TIỀN | E173: 111 | F173: 1121 | G173: 950000000 | H173: 0 | I173: THU* | J173: 950000000 | L173: 0.Rút nộp | M173: Trần Anh Tuấn
A174: 2021-12-20 | B174: 2021-12-20 | C174: STM00062 | D174: RÚT TIỀN | E174: 111 | F174: 1121 | G174: 300000000 | H174: 0 | I174: THU* | J174: 300000000 | L174: 0.Rút nộp | M174: Trần Anh Tuấn
A175: 2021-12-20 | B175: 2021-12-20 | C175: STM00062 | D175: RÚT TIỀN | E175: 111 | F175: 1121 | G175: 400000000 | H175: 0 | I175: THU* | J175: 400000000 | L175: 0.Rút nộp | M175: Trần Anh Tuấn
A176: 2021-12-20 | B176: 2021-12-20 | C176: STM00062 | D176: RÚT TIỀN | E176: 111 | F176: 1121 | G176: 450000000 | H176: 0 | I176: THU* | J176: 450000000 | L176: 0.Rút nộp | M176: Trần Anh Tuấn
A177: 2021-12-20 | B177: 2021-12-20 | C177: STM00062 | D177: RÚT TIỀN | E177: 111 | F177: 1121 | G177: 400000000 | H177: 0 | I177: THU* | J177: 400000000 | L177: 0.Rút nộp | M177: Trần Anh Tuấn
A178: 2021-12-20 | B178: 2021-12-20 | C178: STM00062 | D178: RÚT TIỀN | E178: 111 | F178: 1121 | G178: 400000000 | H178: 0 | I178: THU* | J178: 400000000 | L178: 0.Rút nộp | M178: Trần Anh Tuấn
A179: 2021-12-20 | B179: 2021-12-20 | C179: STM00127 | D179: RÚT TIỀN | E179: 111 | F179: 1121 | G179: 300000000 | H179: 0 | I179: THU* | J179: 300000000 | L179: 0.Rút nộp | M179: Trần Anh Tuấn
A180: 2021-12-20 | B180: 2021-12-20 | C180: STM00128 | D180: RÚT TIỀN | E180: 111 | F180: 1121 | G180: 300000000 | H180: 0 | I180: THU* | J180: 300000000 | L180: 0.Rút nộp | M180: Trần Anh Tuấn
A181: 2021-12-20 | B181: 2021-12-20 | C181: STM00129 | D181: RÚT TIỀN | E181: 111 | F181: 1121 | G181: 300000000 | H181: 0 | I181: THU* | J181: 300000000 | L181: 0.Rút nộp | M181: Trần Anh Tuấn
A182: 2021-12-20 | B182: 2021-12-20 | C182: STM00130 | D182: RÚT TIỀN | E182: 111 | F182: 1121 | G182: 100000000 | H182: 0 | I182: THU* | J182: 100000000 | L182: 0.Rút nộp | M182: Trần Anh Tuấn
A183: 2021-12-21 | B183: 2021-12-21 | C183: STM00063 | D183: RÚT TIỀN | E183: 111 | F183: 1121 | G183: 400000000 | H183: 0 | I183: THU* | J183: 400000000 | L183: 0.Rút nộp | M183: Trần Anh Tuấn
A184: 2021-12-21 | B184: 2021-12-21 | C184: STM00064 | D184: RÚT TIỀN | E184: 111 | F184: 1121 | G184: 450000000 | H184: 0 | I184: THU* | J184: 450000000 | L184: 0.Rút nộp | M184: Trần Anh Tuấn
A185: 2021-12-21 | B185: 2021-12-21 | C185: STM00065 | D185: RÚT TIỀN | E185: 111 | F185: 1121 | G185: 450000000 | H185: 0 | I185: THU* | J185: 450000000 | L185: 0.Rút nộp | M185: Trần Anh Tuấn
A186: 2021-12-21 | B186: 2021-12-21 | C186: STM00066 | D186: RÚT TIỀN | E186: 111 | F186: 1121 | G186: 300000000 | H186: 0 | I186: THU* | J186: 300000000 | L186: 0.Rút nộp | M186: Trần Anh Tuấn
A187: 2021-12-21 | B187: 2021-12-21 | C187: STM00067 | D187: RÚT TIỀN | E187: 111 | F187: 1121 | G187: 450000000 | H187: 0 | I187: THU* | J187: 450000000 | L187: 0.Rút nộp | M187: Trần Anh Tuấn
A188: 2021-12-21 | B188: 2021-12-21 | C188: STM00068 | D188: RÚT TIỀN | E188: 111 | F188: 1121 | G188: 400000000 | H188: 0 | I188: THU* | J188: 400000000 | L188: 0.Rút nộp | M188: Trần Anh Tuấn
A189: 2021-12-21 | B189: 2021-12-21 | C189: STM00069 | D189: RÚT TIỀN | E189: 111 | F189: 1121 | G189: 450000000 | H189: 0 | I189: THU* | J189: 450000000 | L189: 0.Rút nộp | M189: Trần Anh Tuấn
A190: 2021-12-21 | B190: 2021-12-21 | C190: STM00070 | D190: RÚT TIỀN | E190: 111 | F190: 1121 | G190: 450000000 | H190: 0 | I190: THU* | J190: 450000000 | L190: 0.Rút nộp | M190: Trần Anh Tuấn
A191: 2021-12-21 | B191: 2021-12-21 | C191: STM00071 | D191: RÚT TIỀN | E191: 111 | F191: 1121 | G191: 450000000 | H191: 0 | I191: THU* | J191: 450000000 | L191: 0.Rút nộp | M191: Trần Anh Tuấn
A192: 2021-12-21 | B192: 2021-12-21 | C192: STM00072 | D192: RÚT TIỀN | E192: 111 | F192: 1121 | G192: 300000000 | H192: 0 | I192: THU* | J192: 300000000 | L192: 0.Rút nộp | M192: Trần Anh Tuấn
A193: 2021-12-21 | B193: 2021-12-21 | C193: STM00073 | D193: RÚT TIỀN | E193: 111 | F193: 1121 | G193: 450000000 | H193: 0 | I193: THU* | J193: 450000000 | L193: 0.Rút nộp | M193: Trần Anh Tuấn
A194: 2021-12-21 | B194: 2021-12-21 | C194: STM00074 | D194: RÚT TIỀN | E194: 111 | F194: 1121 | G194: 450000000 | H194: 0 | I194: THU* | J194: 450000000 | L194: 0.Rút nộp | M194: Trần Anh Tuấn
A195: 2021-12-21 | B195: 2021-12-21 | C195: STM00075 | D195: RÚT TIỀN | E195: 111 | F195: 1121 | G195: 450000000 | H195: 0 | I195: THU* | J195: =G195-H195 -> 450000000 | L195: 0.Rút nộp | M195: Trần Anh Tuấn
A196: 2021-12-21 | B196: 2021-12-21 | C196: STM00076 | D196: RÚT TIỀN | E196: 111 | F196: 1121 | G196: 450000000 | H196: 0 | I196: THU* | J196: 450000000 | L196: 0.Rút nộp | M196: Trần Anh Tuấn
A197: 2021-12-21 | B197: 2021-12-21 | C197: STM00077 | D197: RÚT TIỀN | E197: 111 | F197: 1121 | G197: 450000000 | H197: 0 | I197: THU* | J197: 450000000 | L197: 0.Rút nộp | M197: Trần Anh Tuấn
A198: 2021-12-21 | B198: 2021-12-21 | C198: STM00080 | D198: RÚT TIỀN | E198: 111 | F198: 1121 | G198: 1400000000 | H198: 0 | I198: THU* | J198: 1400000000 | L198: 0.Rút nộp | M198: Trần Anh Tuấn
A199: 2021-12-21 | B199: 2021-12-21 | C199: STM00081 | D199: RÚT TIỀN | E199: 111 | F199: 1121 | G199: 500000000 | H199: 0 | I199: THU* | J199: 500000000 | L199: 0.Rút nộp | M199: Trần Anh Tuấn
A200: 2021-12-21 | B200: 2021-12-21 | C200: STM00347 | D200: RÚT TIỀN | E200: 111 | F200: 1121 | G200: 450000000 | H200: 0 | I200: THU* | J200: 450000000 | L200: 0.Rút nộp | M200: Trần Anh Tuấn
... 4300 more rows

Sheet Kê rút tiền ra Phú (hidden)
A1: Ngày hạch toán | B1: Số chứng từ | C1: Diễn giải | D1: Tài khoản | E1: TK đối ứng | F1: THU | G1: CHI | H1: THUCHI | I1: SOTIEN | J1: Dư Nợ | K1: Phân Loại | L1: DOITUONG
A2: 2022-01-25 | B2: STM00189 | C2: RÚT TIỀN | D2: 112 | E2: 1111 | F2: 0 | G2: 500000000 | H2: CHI* | I2: -500000000 | K2: 0.Rút nộp | L2: NGUYỄN MẠNH PHÚ
A3: 2022-01-25 | B3: STM00517 | C3: RÚT TIỀN | D3: 112 | E3: 1111 | F3: 0 | G3: 900000000 | H3: CHI* | I3: -900000000 | K3: 0.Rút nộp | L3: NGUYỄN MẠNH PHÚ
A4: 2022-01-25 | B4: STM00517 | C4: RÚT TIỀN | D4: 112 | E4: 1111 | F4: 0 | G4: 20000000000 | H4: CHI* | I4: -20000000000 | K4: 0.Rút nộp | L4: NGUYỄN MẠNH PHÚ
A5: 2022-01-26 | B5: STM00194 | C5: RÚT TIỀN | D5: 112 | E5: 1111 | F5: 0 | G5: 3100000000 | H5: CHI* | I5: -3100000000 | K5: 0.Rút nộp | L5: NGUYỄN MẠNH PHÚ
A6: 2022-01-27 | B6: STM00195 | C6: RÚT TIỀN | D6: 112 | E6: 1111 | F6: 0 | G6: 3800000000 | H6: CHI* | I6: -3800000000 | K6: 0.Rút nộp | L6: NGUYỄN MẠNH PHÚ
A7: 2022-01-28 | B7: STM00522 | C7: RÚT TIỀN | D7: 112 | E7: 1111 | F7: 0 | G7: 20000000 | H7: CHI* | I7: -20000000 | K7: 0.Rút nộp | L7: NGUYỄN MẠNH PHÚ
A8: 2022-01-28 | B8: STM00522 | C8: RÚT TIỀN | D8: 112 | E8: 1111 | F8: 0 | G8: 940000000 | H8: CHI* | I8: -940000000 | K8: 0.Rút nộp | L8: NGUYỄN MẠNH PHÚ
A9: 2022-02-15 | B9: STM00265 | C9: Rút tiền | D9: 112 | E9: 1111 | F9: 0 | G9: 2050000000 | H9: CHI* | I9: -2050000000 | K9: 0.Rút nộp | L9: NGUYỄN MẠNH PHÚ
A10: 2022-02-17 | B10: STM00268 | C10: Rút tiền | D10: 112 | E10: 1111 | F10: 0 | G10: 450000000 | H10: CHI* | I10: -450000000 | K10: 0.Rút nộp | L10: NGUYỄN MẠNH PHÚ
A11: 2022-02-17 | B11: STM00268 | C11: Rút tiền | D11: 112 | E11: 1111 | F11: 0 | G11: 450000000 | H11: CHI* | I11: -450000000 | K11: 0.Rút nộp | L11: NGUYỄN MẠNH PHÚ
A12: 2022-02-17 | B12: STM00268 | C12: Rút tiền | D12: 112 | E12: 1111 | F12: 0 | G12: 100000000 | H12: CHI* | I12: -100000000 | K12: 0.Rút nộp | L12: NGUYỄN MẠNH PHÚ
A13: 2022-02-18 | B13: STM00239 | C13: RÚT TIỀN | D13: 112 | E13: 1111 | F13: 0 | G13: 3000000000 | H13: CHI* | I13: -3000000000 | K13: 0.Rút nộp | L13: NGUYỄN MẠNH PHÚ
A14: 2022-02-18 | B14: STM00269 | C14: Rút tiền | D14: 112 | E14: 1111 | F14: 0 | G14: 2500000000 | H14: CHI* | I14: -2500000000 | K14: 0.Rút nộp | L14: NGUYỄN MẠNH PHÚ
A15: 2022-02-21 | B15: STM00242 | C15: RÚT TIỀN | D15: 112 | E15: 1111 | F15: 0 | G15: 3000000000 | H15: CHI* | I15: -3000000000 | K15: 0.Rút nộp | L15: NGUYỄN MẠNH PHÚ
A16: 2022-02-23 | B16: NTTK00842 | C16: nộp tiền tk | D16: 112 | E16: 1111 | F16: 400000000 | G16: 0 | H16: THU* | I16: 400000000 | K16: 0.Rút nộp | L16: NGUYỄN MẠNH PHÚ
A17: 2022-02-23 | B17: NTTK00843 | C17: nộp tiền tk | D17: 112 | E17: 1111 | F17: 1000000000 | G17: 0 | H17: THU* | I17: 1000000000 | K17: 0.Rút nộp | L17: NGUYỄN MẠNH PHÚ
A18: 2022-02-23 | B18: NTTK00996 | C18: Nộp tiền | D18: 112 | E18: 1111 | F18: 450000000 | G18: 0 | H18: THU* | I18: 450000000 | K18: 0.Rút nộp | L18: NGUYỄN MẠNH PHÚ
A19: 2022-02-23 | B19: NTTK00996 | C19: Nộp tiền | D19: 112 | E19: 1111 | F19: 345000000 | G19: 0 | H19: THU* | I19: 345000000 | K19: 0.Rút nộp | L19: NGUYỄN MẠNH PHÚ
A20: 2022-02-23 | B20: NTTK01050 | C20: NỘP TIỀN | D20: 112 | E20: 1111 | F20: 300000000 | G20: 0 | H20: THU* | I20: 300000000 | K20: 0.Rút nộp | L20: NGUYỄN MẠNH PHÚ
A21: 2022-02-23 | B21: NTTK01050 | C21: NỘP TIỀN | D21: 112 | E21: 1111 | F21: 300000000 | G21: 0 | H21: THU* | I21: 300000000 | K21: 0.Rút nộp | L21: NGUYỄN MẠNH PHÚ
A22: 2022-02-23 | B22: NTTK01050 | C22: NỘP TIỀN | D22: 112 | E22: 1111 | F22: 300000000 | G22: 0 | H22: THU* | I22: 300000000 | K22: 0.Rút nộp | L22: NGUYỄN MẠNH PHÚ
A23: 2022-02-23 | B23: NTTK01050 | C23: NỘP TIỀN | D23: 112 | E23: 1111 | F23: 300000000 | G23: 0 | H23: THU* | I23: 300000000 | K23: 0.Rút nộp | L23: NGUYỄN MẠNH PHÚ
A24: 2022-02-23 | B24: NTTK01050 | C24: NỘP TIỀN | D24: 112 | E24: 1111 | F24: 100000000 | G24: 0 | H24: THU* | I24: 100000000 | K24: 0.Rút nộp | L24: NGUYỄN MẠNH PHÚ
A25: 2022-03-07 | B25: STM00583 | C25: RÚT TIỀN | D25: 112 | E25: 1111 | F25: 0 | G25: 3930000000 | H25: CHI* | I25: -3930000000 | K25: 0.Rút nộp | L25: NGUYỄN MẠNH PHÚ
A26: 2022-03-07 | B26: STM00583 | C26: RÚT TIỀN | D26: 112 | E26: 1111 | F26: 0 | G26: 100000000 | H26: CHI* | I26: -100000000 | K26: 0.Rút nộp | L26: NGUYỄN MẠNH PHÚ
A27: Tổng | F27: =SUM(F2:F26) -> 3495000000 | G27: =SUM(G2:G26) -> 44840000000

Sheet Kê rút tiền ra Thọ (hidden)
A1: Ngày hạch toán | B1: Cột1 | C1: Số chứng từ | D1: Diễn giải | E1: Tài khoản | F1: TK đối ứng | G1: THU | H1: CHI | I1: THUCHI | J1: SOTIEN | K1: Dư Nợ | L1: Phân Loại | M1: DOITUONG
A2: 2022-01-21 | B2: 2022-01-21 | C2: STM00191 | D2: RÚT TIỀN | E2: 112 | F2: 1111 | G2: 0 | H2: 1000000000 | I2: CHI* | J2: -1000000000 | L2: 0.Rút nộp | M2: VP Bank - PHẠM THANH THỌ
A3: 2022-01-21 | B3: 2022-01-21 | C3: STM00191 | D3: RÚT TIỀN | E3: 112 | F3: 1111 | G3: 0 | H3: 500000000 | I3: CHI* | J3: -500000000 | L3: 0.Rút nộp | M3: VP Bank - PHẠM THANH THỌ
A4: 2022-01-12 | B4: 2022-01-12 | C4: STM00162 | D4: RÚT TIỀN | E4: 112 | F4: 1111 | G4: 0 | H4: 4060000000 | I4: CHI* | J4: -4060000000 | L4: 0.Rút nộp | M4: VP Bank - PHẠM THANH THỌ
A5: 2022-01-04 | B5: 2022-01-04 | C5: STM00143 | D5: RÚT TIỀN | E5: 112 | F5: 1111 | G5: 0 | H5: 1000000000 | I5: CHI* | J5: -1000000000 | L5: 0.Rút nộp | M5: VP Bank - PHẠM THANH THỌ
A6: Tổng | H6: =SUM(H2:H5) -> 6560000000
M7: STK: 94920388

Sheet Kê rút tiền ra Tuấn (hidden)
